Workbook

Sheet p2(x) for exp(x) on 0,3
B2: Polynomial Interpolation by Newton's divided difference method: Approximating exp(x) by p2(x) on [0,3]
G4: Table of Values | U4: www.numerical-methods.com
B5: x_i | C5: f(x_i) | G5: x | H5: f(x) | I5: p_2(x)
B6: 0 | C6: =f(B6) -> 1 | D6: =(C7-C6)/($B7-$B6) -> 2.321126047 | E6: =(D7-D6)/($B8-$B6) -> 2.693813063 | G6: 0 | H6: =f(G6) -> 1 | I6: =$C$6+$D$6*(G6-$B$6)+$E$6*(G6-$B$6)*(G6-$B$7) -> 1
B7: 1.5 | C7: =f(B7) -> 4.48168907 | D7: =(C8-C7)/($B8-$B7) -> 10.40256524 | G7: 0.15 | H7: =f(G7) -> 1.161834243 | I7: 0.8026717618
B8: 3 | C8: 20.08553692 | G8: 0.3 | H8: 1.349858808 | I8: 0.7265651115
G9: 0.45 | H9: 1.568312185 | I9: 0.7716800489
G10: 0.6 | H10: 1.8221188 | I10: 0.9380165742
G11: 0.75 | H11: 2.117000017 | I11: 1.225574687
G12: 0.9 | H12: 2.459603111 | I12: 1.634354388
G13: 1.05 | H13: 2.857651118 | I13: 2.164355677
G14: 1.2 | H14: 3.320116923 | I14: 2.815578554
G15: 1.35 | H15: 3.857425531 | I15: 3.588023018
G16: 1.5 | H16: 4.48168907 | I16: 4.48168907
G17: 1.65 | H17: 5.206979827 | I17: 5.49657671
G18: 1.8 | H18: 6.049647464 | I18: 6.632685938
G19: 1.95 | H19: 7.028687581 | I19: 7.890016754
G20: 2.1 | H20: 8.166169913 | I20: 9.268569158
G21: 2.25 | H21: 9.487735836 | I21: 10.76834315
G22: 2.4 | H22: 11.02317638 | I22: 12.38933873
G23: 2.55 | H23: 12.80710378 | I23: 14.1315559
G24: 2.7 | H24: 14.87973172 | I24: 15.99499465
G25: 2.85 | H25: 17.28778184 | I25: 17.97965499
G26: 3 | H26: 20.08553692 | I26: 20.08553692
G28: Guide: | I28: http://www.numerical-methods.com/approximation/Polynomial%20Interpolation.htm
G31: User Group | I31: Spreadsheets in Science and Engineering

Sheet p3(x) for exp(x) on 0,3
B2: Polynomial Interpolation by Newton's divided difference method: Approximating exp(x) by p3(x) on [0,3]
L4: In this demonstration the function f(x) is defined as a macro.
H5: Table of Values | L5: The function f(x) can be edited by typing <Alt><F11> and Insert - Module | V5: www.numerical-methods.com
B6: x_i | C6: f(x_i) | H6: x | I6: f(x) | J6: p_3(x)
B7: 0 | C7: =f(B7) -> 1 | D7: =(C8-C7)/($B8-$B7) -> 1.718281828 | E7: =(D8-D7)/($B9-$B7) -> 1.476246221 | F7: =(E8-E7)/($B10-$B7) -> 0.8455356853 | H7: 0 | I7: =f(H7) -> 1 | J7: =$C$7+$D$7*(H7-$B$7)+$E$7*(H7-$B$7)*(H7-$B$8)+$F$7*(H7-$B$7)*(H7-$B$8)*(H7-$B$9) -> 1
B8: 1 | C8: =f(B8) -> 2.718281828 | D8: =(C9-C8)/($B9-$B8) -> 4.67077427 | E8: =(D9-D8)/($B10-$B8) -> 4.012853277 | H8: 0.15 | I8: =f(H8) -> 1.161834243 | J8: =$C$7+$D$7*(H8-$B$7)+$E$7*(H8-$B$7)*(H8-$B$8)+$F$7*(H8-$B$7)*(H8-$B$8)*(H8-$B$9) -> 1.268961611
B9: 2 | C9: 7.389056099 | D9: =(C10-C9)/($B10-$B9) -> 12.69648082 | H9: 0.3 | I9: 1.349858808 | J9: 1.507329082
B10: 3 | C10: 20.08553692 | H10: 0.45 | I10: 1.568312185 | J10: 1.73222451
H11: 0.6 | I11: 1.8221188 | J11: 1.960769994
H12: 0.75 | I12: 2.117000017 | J12: 2.210087631
H13: 0.9 | I13: 2.459603111 | J13: 2.497299519
H14: 1.05 | I14: 2.857651118 | J14: 2.839527754
H15: 1.2 | I15: 3.320116923 | J15: 3.253894436
H16: 1.35 | I16: 3.857425531 | J16: 3.75752166
H17: 1.5 | I17: 4.48168907 | J17: 4.367531526
H18: 1.65 | I18: 5.206979827 | J18: 5.101046131
H19: 1.8 | I19: 6.049647464 | J19: 5.975187572
H20: 1.95 | I20: 7.028687581 | J20: 7.007077947
H21: 2.1 | I21: 8.166169913 | J21: 8.213839354
H22: 2.25 | I22: 9.487735836 | J22: 9.612593889
H23: 2.4 | I23: 11.02317638 | J23: 11.22046365
H24: 2.55 | I24: 12.80710378 | J24: 13.05457074
H25: 2.7 | I25: 14.87973172 | J25: 15.13203725
H26: 2.85 | I26: 17.28778184 | J26: 17.46998528
H27: 3 | I27: 20.08553692 | J27: 20.08553692
H30: Guide: | J30: http://www.numerical-methods.com/approximation/Polynomial%20Interpolation.htm
H33: User Group | J33: Spreadsheets in Science and Engineering

Sheet p6(x) for exp(x) on 0,3 (2)
B2: Polynomial Interpolation by Newton's divided difference method: Approximating exp(x) by p6(x) on [0,3]
K4: Table of Values | Y4: www.numerical-methods.com
B5: x_i | C5: f(x_i) | K5: x | L5: f(x) | M5: p_6(x)
B6: 0 | C6: =f(B6) -> 1 | D6: =(C7-C6)/($B7-$B6) -> 1.297442541 | E6: =(D7-D6)/($B8-$B6) -> 0.8416785741 | F6: =(E7-E6)/($B9-$B6) -> 0.3640098627 | G6: =(F7-F6)/($B10-$B6) -> 0.1180704704 | H6: =(G7-G6)/($B11-$B6) -> 0.03063793022 | I6: =(H7-H6)/($B12-$B6) -> 0.006625159009 | K6: 0 | L6: =f(K6) -> 1 | M6: =$C$6+(K6-$B$6)*($D$6+(K6-$B$7)*($E$6+(K6-$B$8)*($F$6+(K6-$B$9)*($G$6+(K6-$B$10)*($H$6+(K6-$B$11)*($I$6)))))) -> 1
B7: 0.5 | C7: =f(B7) -> 1.648721271 | D7: =(C8-C7)/($B8-$B7) -> 2.139121116 | E7: =(D8-D7)/($B9-$B7) -> 1.387693368 | F7: =(E8-E7)/($B10-$B7) -> 0.6001508035 | G7: =(F8-F7)/($B11-$B7) -> 0.1946652959 | H7: =(G8-G7)/($B12-$B7) -> 0.05051340725 | K7: 0.15 | L7: =f(K7) -> 1.161834243 | M7: =$C$6+(K7-$B$6)*($D$6+(K7-$B$7)*($E$6+(K7-$B$8)*($F$6+(K7-$B$9)*($G$6+(K7-$B$10)*($H$6+(K7-$B$11)*($I$6)))))) -> 1.161238621
B8: 1 | C8: 2.718281828 | D8: 3.526814484 | E8: 2.287919573 | F8: 0.9894813953 | G8: 0.320948814 | K8: 0.3 | L8: 1.349858808 | M8: 1.349445952
B9: 1.5 | C9: 4.48168907 | D9: 5.814734057 | E9: 3.772141666 | F9: 1.631379023 | K9: 0.45 | L9: 1.568312185 | M9: 1.56822534
B10: 2 | C10: 7.389056099 | D10: 9.586875724 | E10: 6.219210201 | K10: 0.6 | L10: 1.8221188 | M10: 1.822234489
B11: 2.5 | C11: 12.18249396 | D11: 15.80608592 | K11: 0.75 | L11: 2.117000017 | M11: 2.117147701
B12: 3 | C12: 20.08553692 | K12: 0.9 | L12: 2.459603111 | M12: 2.459672446
K13: 1.05 | L13: 2.857651118 | M13: 2.857620265
K14: 1.2 | L14: 3.320116923 | M14: 3.320032014
K15: 1.35 | L15: 3.857425531 | M15: 3.857357436
K16: 1.5 | L16: 4.48168907 | M16: 4.48168907
K17: 1.65 | L17: 5.206979827 | M17: 5.207050499
K18: 1.8 | L18: 6.049647464 | M18: 6.049738921
K19: 1.95 | L19: 7.028687581 | M19: 7.028722072
K20: 2.1 | L20: 8.166169913 | M20: 8.166089463
K21: 2.25 | L21: 9.487735836 | M21: 9.487557971
K22: 2.4 | L22: 11.02317638 | M22: 11.02303175
K23: 2.55 | L23: 12.80710378 | M23: 12.80721649
K24: 2.7 | L24: 14.87973172 | M24: 14.88028799
K25: 2.85 | L25: 17.28778184 | M25: 17.28861509
K26: 3 | L26: 20.08553692 | M26: 20.08553692
K29: Guide: | M29: http://www.numerical-methods.com/approximation/Polynomial%20Interpolation.htm
K32: User Group | M32: Spreadsheets in Science and Engineering
